[Event "Championnat d'Europe Rapide"]
[Date "2024.12.08"]
[White "Bulmaga, Irina"]
[Black "Bernadskiy, Vitaliy"]
[WhiteElo "2386"]
[BlackElo "2546"]
[Round "7.21"]
[Result "0-1"]
[TimeControl "900+10"]

1. e4 {[%emt 00:00:03] [%clk 00:15:18]} g6 {[%emt 00:00:01] [%clk 00:15:18]} 2.
d4 {[%emt 00:00:02] [%clk 00:15:25]} Bg7 {[%emt 00:00:02] [%clk 00:15:26]} 3.
Nc3 {[%emt 00:00:05] [%clk 00:15:30]} a6 {[%emt 00:00:02] [%clk 00:15:34]} 4. a4
{[%emt 00:00:05] [%clk 00:15:35]} d6 {[%emt 00:00:04] [%clk 00:15:40]} 5. Nf3
{[%emt 00:00:03] [%clk 00:15:42]} Nf6 {[%emt 00:00:03] [%clk 00:15:48]} 6. h3
{[%emt 00:00:19] [%clk 00:15:33]} O-O {[%emt 00:00:03] [%clk 00:15:55]} 7. Be2
{[%emt 00:00:07] [%clk 00:15:35]} b6 {[%emt 00:00:04] [%clk 00:16:01]} 8. e5
{[%emt 00:03:18] [%clk 00:12:27]} Nfd7 {[%emt 00:00:17] [%clk 00:15:54]} 9. Bg5
{[%emt 00:04:38] [%clk 00:07:59]} Bb7 {[%emt 00:00:42] [%clk 00:15:22]} 10. O-O
{[%emt 00:01:10] [%clk 00:06:59]} dxe5 {[%emt 00:00:29] [%clk 00:15:04]} 11.
dxe5 {[%emt 00:00:07] [%clk 00:07:02]} Nxe5 {[%emt 00:00:09] [%clk 00:15:04]}
12. Qxd8 {[%emt 00:01:10] [%clk 00:06:02]} Rxd8 {[%emt 00:00:04] [%clk
00:15:11]} 13. Bxe7 {[%emt 00:00:02] [%clk 00:06:09]} Re8 {[%emt 00:00:07] [%clk
00:15:14]} 14. Bg5 {[%emt 00:00:33] [%clk 00:05:46]} Nxf3+ {[%emt 00:00:14]
[%clk 00:15:10]} 15. Bxf3 {[%emt 00:00:05] [%clk 00:05:52]} Bxf3 {[%emt
00:00:03] [%clk 00:15:17]} 16. gxf3 {[%clk 00:06:00]} Nc6 {[%emt 00:00:15] [%clk
00:15:12]} 17. Rad1 {[%emt 00:01:50] [%clk 00:04:20]} Nd4 {[%emt 00:01:54] [%clk
00:13:28]} 18. Kg2 {[%emt 00:00:03] [%clk 00:04:27]} b5 {[%emt 00:00:14] [%clk
00:13:25]} 19. Rfe1 {[%emt 00:00:59] [%clk 00:03:38]} Rxe1 {[%emt 00:00:29]
[%clk 00:13:06]} 20. Rxe1 {[%emt 00:00:02] [%clk 00:03:45]} Nxc2 {[%emt
00:00:37]} 21. Rc1 {[%clk 00:03:33]} Nd4 {[%emt 00:00:18] [%clk 00:12:54]} 22.
axb5 {[%emt 00:01:49] [%clk 00:01:54]} axb5 {[%emt 00:00:02] [%clk 00:13:02]}
23. Nd5 {[%emt 00:00:46] [%clk 00:01:18]} h6 {[%emt 00:01:06] [%clk 00:12:06]}
24. Be3 {[%emt 00:00:33] [%clk 00:00:55]} Ra2 {[%emt 00:00:02] [%clk 00:12:13]}
25. b4 {[%emt 00:00:33] [%clk 00:00:32]} Nc2 {[%emt 00:01:45] [%clk 00:10:39]}
26. Bc5 {[%emt 00:00:02] [%clk 00:00:40]} Rb2 {[%emt 00:00:59] [%clk 00:09:50]}
27. f4 {[%emt 00:00:21] [%clk 00:00:28]} Kh7 {[%emt 00:00:09] [%clk 00:09:50]}
28. Kg3 {[%emt 00:00:19] [%clk 00:00:20]} c6 {[%emt 00:00:09] [%clk 00:09:51]}
29. Ne7 {[%emt 00:00:16] [%clk 00:00:14]} Nxb4 {[%emt 00:00:03] [%clk 00:09:58]}
30. Bxb4 {[%emt 00:00:07] [%clk 00:00:17]} Rxb4 {[%emt 00:00:02] [%clk
00:10:06]} 31. Rxc6 {[%emt 00:00:07] [%clk 00:00:20]} Rb3+ {[%emt 00:00:06]
[%clk 00:10:10]} 32. f3 {[%emt 00:00:03] [%clk 00:00:27]} Rb2 {[%emt 00:00:08]
[%clk 00:10:12]} 33. f5 {[%emt 00:00:12] [%clk 00:00:25]} Be5+ {[%emt 00:00:20]
[%clk 00:10:02]} 34. f4 {[%emt 00:00:02] [%clk 00:00:34]} Rb3+ {[%emt 00:00:02]
[%clk 00:10:09]} 35. Kf2 {[%emt 00:00:10] [%clk 00:00:34]} Bxf4 {[%emt 00:01:10]
[%clk 00:09:09]} 36. fxg6+ {[%emt 00:00:02] [%clk 00:00:43]} fxg6 {[%emt
00:00:05] [%clk 00:09:14]} 37. Nxg6 {[%emt 00:00:06] [%clk 00:00:47]} Bg3+
{[%emt 00:00:06] [%clk 00:09:18]} 38. Kg2 {[%emt 00:00:08] [%clk 00:00:49]} b4
{[%emt 00:00:06] [%clk 00:09:21]} 39. h4 {[%emt 00:00:08] [%clk 00:00:51]} Rc3
{[%emt 00:00:12] [%clk 00:09:19]} 40. Rb6 {[%emt 00:00:36] [%clk 00:00:25]} Bc7
{[%emt 00:00:04] [%clk 00:09:26]} 41. Nf8+ {[%emt 00:00:20] [%clk 00:00:15]} Kg8
{[%emt 00:00:06] [%clk 00:09:30]} 42. Rxb4 {[%emt 00:00:02] [%clk 00:00:23]}
Kxf8 {[%emt 00:00:04] [%clk 00:09:36]} 43. Rg4 {[%emt 00:00:01] [%clk 00:00:32]}
Kf7 {[%emt 00:00:05] [%clk 00:09:40]} 44. Ra4 {[%emt 00:00:18] [%clk 00:00:24]}
Kg6 {[%emt 00:00:04] [%clk 00:09:47]} 45. Re4 {[%emt 00:00:20] [%clk 00:00:14]}
Kf5 {[%emt 00:00:05] [%clk 00:09:51]} 46. Ra4 {[%emt 00:00:04] [%clk 00:00:21]}
Bf4 {[%emt 00:00:02] [%clk 00:09:59]} 47. h5 {[%emt 00:00:14] [%clk 00:00:17]}
Kg4 {[%emt 00:00:03] [%clk 00:10:05]} 48. Ra2 {[%emt 00:00:13] [%clk 00:00:15]}
Rh3 {[%emt 00:00:02] [%clk 00:10:12]} 49. Ra5 {[%emt 00:00:10] [%clk 00:00:16]}
Rh2+ {[%emt 00:00:03] [%clk 00:10:19]} 50. Kg1 {[%emt 00:00:02] [%clk 00:00:24]}
Re2 {[%emt 00:00:04] [%clk 00:10:24]} 51. Ra3 {[%emt 00:00:21] [%clk 00:00:14]}
Be3+ {[%emt 00:00:03] [%clk 00:10:31]} 52. Kf1 {[%emt 00:00:07] [%clk 00:00:17]}
Kf3 {[%emt 00:00:13] [%clk 00:10:28]} 53. Ra8 {[%emt 00:00:13] [%clk 00:00:14]}
Rc2 {[%emt 00:00:34] [%clk 00:10:03]} 54. Rf8+ {[%emt 00:00:06] [%clk 00:00:18]}
Bf4 {[%emt 00:00:01] [%clk 00:10:11]} 55. Re8 {[%emt 00:00:03] [%clk 00:00:27]}
Rh2 {[%emt 00:00:16] [%clk 00:10:05]} 56. Kg1 {[%emt 00:00:03] [%clk 00:00:33]}
Rxh5 {[%emt 00:00:02] [%clk 00:10:13]} 57. Rf8 {[%emt 00:00:02] [%clk 00:00:42]}
Ra5 {[%emt 00:00:07] [%clk 00:10:15]} 0-1

[Site "Europe Echecs"]

[Event "Championnat d'Europe Rapide"]
[Date "2024.12.08"]
[White "Nevednichy, Vladislav"]
[Black "Fridman, Daniel"]
[WhiteElo "2451"]
[BlackElo "2571"]
[Round "7.22"]
[Result "1/2-1/2"]
[TimeControl "900+10"]

1. e4 {[%emt 00:00:02] [%clk 00:15:16]} e6 {[%emt 00:04:10] [%clk 00:11:11]} 2.
d4 {[%emt 00:00:13] [%clk 00:15:13]} d5 {[%emt 00:00:02] [%clk 00:11:20]} 3.
exd5 {[%emt 00:01:12] [%clk 00:14:12]} exd5 {[%clk 00:11:28]} 4. Nf3 {[%emt
00:00:01] [%clk 00:14:21]} Nf6 {[%emt 00:00:02] [%clk 00:11:35]} 5. Bg5 {[%emt
00:00:10] [%clk 00:14:21]} Bd6 {[%emt 00:00:02] [%clk 00:11:43]} 6. Bd3 {[%emt
00:01:21] [%clk 00:13:10]} Qe7+ {[%emt 00:00:02] [%clk 00:11:52]} 7. Qe2 {[%emt
00:00:18] [%clk 00:13:01]} Qxe2+ {[%emt 00:00:03] [%clk 00:11:59]} 8. Kxe2
{[%emt 00:00:30] [%clk 00:12:41]} Ne4 {[%emt 00:00:02] [%clk 00:12:08]} 9. Be3
{[%emt 00:02:04] [%clk 00:10:47]} O-O {[%emt 00:02:34] [%clk 00:09:43]} 10. Nc3
{[%emt 00:00:43] [%clk 00:10:14]} Nxc3+ {[%emt 00:00:04] [%clk 00:09:49]} 11.
bxc3 {[%emt 00:00:01] [%clk 00:10:23]} Nc6 {[%emt 00:00:41] [%clk 00:09:18]} 12.
h3 {[%emt 00:00:28] [%clk 00:10:05]} Re8 {[%emt 00:00:03] [%clk 00:09:25]} 13.
Rhe1 {[%emt 00:00:20] [%clk 00:09:55]} Na5 {[%emt 00:00:56] [%clk 00:08:39]} 14.
Nd2 {[%emt 00:03:51] [%clk 00:06:14]} f5 {[%emt 00:00:43] [%clk 00:08:06]} 15.
g3 {[%emt 00:00:02] [%clk 00:06:22]} g5 {[%emt 00:00:11] [%clk 00:08:05]} 16. f4
{[%emt 00:00:09] [%clk 00:06:23]} gxf4 {[%emt 00:00:30] [%clk 00:07:46]} 17.
gxf4 {[%emt 00:00:01] [%clk 00:06:31]} Bxf4 {[%emt 00:00:03] [%clk 00:07:53]}
18. Kf3 {[%emt 00:00:08] [%clk 00:06:33]} Bxe3 {[%emt 00:00:21] [%clk 00:07:42]}
19. Rxe3 {[%emt 00:00:02] [%clk 00:06:41]} Rxe3+ {[%emt 00:00:23] [%clk
00:07:29]} 20. Kxe3 {[%emt 00:00:02] [%clk 00:06:50]} f4+ {[%emt 00:02:32] [%clk
00:05:07]} 21. Kxf4 {[%emt 00:00:04] [%clk 00:06:56]} Bxh3 {[%emt 00:00:02]
[%clk 00:05:13]} 22. Rg1+ {[%emt 00:01:08] [%clk 00:06:00]} Kh8 {[%emt 00:00:03]
[%clk 00:05:20]} 23. Rh1 {[%emt 00:03:38] [%clk 00:02:32]} Rf8+ {[%emt 00:00:02]
[%clk 00:05:28]} 24. Kg5 {[%emt 00:00:51] [%clk 00:01:50]} Rg8+ {[%emt 00:00:02]
[%clk 00:05:36]} 25. Kf4 {[%emt 00:00:36] [%clk 00:01:24]} Rf8+ {[%emt 00:00:40]
[%clk 00:05:06]} 26. Kg5 {[%emt 00:00:03] [%clk 00:01:31]} 1/2-1/2

[Site "Europe Echecs"]

[Event "Championnat d'Europe Rapide"]
[Date "2024.12.08"]
[White "Smeets, Jan"]
[Black "Savanovic, Aleksandar"]
[WhiteElo "2552"]
[BlackElo "2354"]
[Round "7.23"]
[Result "1-0"]
[TimeControl "900+10"]

1. e4 {[%emt 00:16:02] [%clk 00:15:19]} e5 {[%emt 00:00:07] [%clk 00:15:15]} 2.
Nf3 {[%clk 00:15:27]} Nc6 {[%emt 00:00:04] [%clk 00:15:21]} 3. Bb5 {[%emt
00:00:02] [%clk 00:15:35]} a6 {[%emt 00:00:02] [%clk 00:15:30]} 4. Ba4 {[%emt
00:00:01] [%clk 00:15:43]} Nf6 {[%emt 00:00:02] [%clk 00:15:37]} 5. d3 {[%emt
00:00:02] [%clk 00:15:52]} d6 {[%emt 00:00:18] [%clk 00:15:29]} 6. c4 {[%emt
00:00:04] [%clk 00:15:58]} g6 {[%emt 00:00:08] [%clk 00:15:31]} 7. Nc3 {[%emt
00:00:14] [%clk 00:15:54]} Bg7 {[%emt 00:00:01] [%clk 00:15:39]} 8. h3 {[%emt
00:00:22] [%clk 00:15:43]} O-O {[%emt 00:00:04] [%clk 00:15:44]} 9. O-O {[%emt
00:00:04] [%clk 00:15:50]} Nd7 {[%emt 00:01:11] [%clk 00:14:43]} 10. Bg5 {[%emt
00:00:29] [%clk 00:15:30]} f6 {[%emt 00:00:12] [%clk 00:14:42]} 11. Be3 {[%emt
00:00:04] [%clk 00:15:37]} Nc5 {[%emt 00:00:16] [%clk 00:14:35]} 12. Bxc5 {[%emt
00:01:26] [%clk 00:14:21]} dxc5 {[%emt 00:00:02] [%clk 00:14:43]} 13. Bxc6
{[%emt 00:00:01] [%clk 00:14:29]} bxc6 {[%emt 00:00:02] [%clk 00:14:52]} 14. Qe2
{[%emt 00:00:15] [%clk 00:14:24]} Qd6 {[%emt 00:01:01] [%clk 00:14:01]} 15. Rad1
{[%emt 00:01:11] [%clk 00:13:24]} Be6 {[%emt 00:00:08] [%clk 00:14:04]} 16. Nd2
{[%emt 00:00:24] [%clk 00:13:09]} Rab8 {[%emt 00:00:07] [%clk 00:14:07]} 17. Nb3
{[%emt 00:00:24] [%clk 00:12:55]} Rb4 {[%emt 00:00:33] [%clk 00:13:43]} 18. Qe3
{[%emt 00:02:53]} Re8 {[%emt 00:00:42] [%clk 00:12:56]} 19. Qxc5 {[%emt
00:04:35] [%clk 00:06:03]} Qxc5 {[%emt 00:00:04] [%clk 00:13:03]} 20. Nxc5
{[%emt 00:00:02] [%clk 00:06:11]} Rxb2 {[%emt 00:02:46] [%clk 00:10:26]} 21.
Nxa6 {[%emt 00:00:03] [%clk 00:06:19]} Bc8 {[%emt 00:00:38] [%clk 00:09:57]} 22.
Nc5 {[%emt 00:00:26] [%clk 00:06:03]} Bf8 {[%emt 00:01:06] [%clk 00:09:01]} 23.
N5a4 {[%emt 00:00:02] [%clk 00:06:12]} Rc2 {[%emt 00:00:06] [%clk 00:09:04]} 24.
Rc1 {[%emt 00:00:45] [%clk 00:05:37]} Rxc1 {[%emt 00:00:12] [%clk 00:09:01]} 25.
Rxc1 {[%emt 00:00:02] [%clk 00:05:46]} Rd8 {[%emt 00:00:01] [%clk 00:09:09]} 26.
Rd1 {[%emt 00:00:12] [%clk 00:05:45]} f5 {[%emt 00:00:42] [%clk 00:08:37]} 27.
Kf1 {[%emt 00:00:19] [%clk 00:05:36]} Be6 {[%emt 00:00:14] [%clk 00:08:33]} 28.
Ke2 {[%emt 00:00:33] [%clk 00:05:13]} Ra8 {[%emt 00:00:03] [%clk 00:08:41]} 29.
f3 {[%emt 00:00:37] [%clk 00:04:45]} Kf7 {[%emt 00:00:07] [%clk 00:08:43]} 30.
exf5 {[%emt 00:02:47] [%clk 00:02:09]} gxf5 {[%emt 00:00:02] [%clk 00:08:51]}
31. g4 {[%emt 00:00:01] [%clk 00:02:18]} f4 {[%emt 00:00:03] [%clk 00:08:58]}
32. Rb1 {[%emt 00:01:06] [%clk 00:01:22]} Be7 {[%emt 00:01:07] [%clk 00:08:02]}
33. Rb7 {[%emt 00:00:11] [%clk 00:01:20]} Bd8 {[%emt 00:00:02] [%clk 00:08:10]}
34. Nc5 {[%emt 00:00:06] [%clk 00:01:24]} Bc8 {[%emt 00:00:04] [%clk 00:08:14]}
35. Rb1 {[%emt 00:00:08] [%clk 00:01:28]} Be7 {[%emt 00:00:15] [%clk 00:08:09]}
36. N5e4 {[%emt 00:00:02] [%clk 00:01:36]} Ke6 {[%emt 00:00:03] [%clk 00:08:16]}
37. Kd2 {[%emt 00:01:08] [%clk 00:00:38]} Kd7 {[%emt 00:01:10] [%clk 00:07:16]}
38. h4 {[%emt 00:00:19] [%clk 00:00:30]} Ke6 {[%emt 00:00:42] [%clk 00:06:43]}
39. h5 {[%emt 00:00:08] [%clk 00:00:32]} h6 {[%emt 00:00:02] [%clk 00:06:51]}
40. Rg1 {[%emt 00:00:22] [%clk 00:00:19]} Rb8 {[%emt 00:00:53] [%clk 00:06:09]}
41. Kc2 {[%emt 00:00:01] [%clk 00:00:28]} Bd7 {[%emt 00:00:08] [%clk 00:06:11]}
42. Rb1 {[%emt 00:00:14] [%clk 00:00:24]} Ra8 {[%emt 00:00:15] [%clk 00:06:07]}
43. Rb7 {[%emt 00:00:02] [%clk 00:00:32]} Bd8 {[%clk 00:06:15]} 44. Nc5+ {[%emt
00:00:24] [%clk 00:00:18]} Ke7 {[%emt 00:00:02] [%clk 00:06:24]} 45. a4 {[%emt
00:00:15] [%clk 00:00:12]} Bc8 {[%emt 00:00:08] [%clk 00:06:26]} 46. Rb1 {[%emt
00:00:01] [%clk 00:00:21]} Kf6 {[%emt 00:00:10] [%clk 00:06:26]} 47. N3e4+
{[%emt 00:00:05] [%clk 00:00:27]} Kf7 {[%emt 00:00:01] [%clk 00:06:34]} 48. Rg1
{[%emt 00:00:04] [%clk 00:00:33]} Ra5 {[%emt 00:00:19] [%clk 00:06:25]} 49. Ra1
{[%emt 00:00:04] [%clk 00:00:39]} Be7 {[%emt 00:00:08] [%clk 00:06:27]} 50. Nb3
{[%emt 00:00:02] [%clk 00:00:47]} Ra8 {[%emt 00:00:14] [%clk 00:06:22]} 51. a5
{[%emt 00:00:01] [%clk 00:00:56]} Bb4 {[%emt 00:00:12] [%clk 00:06:20]} 52. Ra4
{[%emt 00:00:03] [%clk 00:01:03]} Be7 {[%emt 00:00:24] [%clk 00:06:06]} 53. Nbc5
{[%emt 00:00:08] [%clk 00:01:05]} Ra7 {[%emt 00:00:16] [%clk 00:06:00]} 54. Kc3
{[%emt 00:00:03] [%clk 00:01:13]} Ra8 {[%emt 00:00:25] [%clk 00:05:45]} 55. Ra2
{[%emt 00:00:01] [%clk 00:01:21]} Ra7 {[%emt 00:00:03] [%clk 00:05:52]} 56. d4
{[%emt 00:00:40] [%clk 00:00:51]} Bd6 {[%emt 00:01:10] [%clk 00:04:52]} 57. Nd3
{[%emt 00:00:08] [%clk 00:00:53]} Ke6 {[%emt 00:00:21] [%clk 00:04:41]} 58. dxe5
{[%emt 00:00:22] [%clk 00:00:41]} Bxe5+ {[%emt 00:00:02] [%clk 00:04:48]} 59.
Nxe5 {[%emt 00:00:07] [%clk 00:00:44]} Kxe5 {[%emt 00:00:02] [%clk 00:04:56]}
60. Nc5 {[%emt 00:00:03] [%clk 00:00:52]} Kf6 {[%emt 00:00:38] [%clk 00:04:28]}
61. Kd4 {[%emt 00:00:05] [%clk 00:00:57]} Kg5 {[%emt 00:00:18] [%clk 00:04:20]}
62. Ne4+ {[%emt 00:00:04] [%clk 00:01:03]} 1-0

[Site "Europe Echecs"]

[Event "Championnat d'Europe Rapide"]
[Date "2024.12.08"]
[White "Grigorov, Grigor"]
[Black "Baskin, Robert"]
[WhiteElo "2497"]
[BlackElo "2442"]
[Round "7.24"]
[Result "1-0"]
[TimeControl "900+10"]

1. Nf3 {[%emt 00:00:02] [%clk 00:15:17]} Nf6 {[%emt 00:00:06] [%clk 00:15:15]}
2. d4 {[%emt 00:00:14] [%clk 00:15:13]} d5 {[%emt 00:00:02] [%clk 00:15:22]} 3.
c4 {[%emt 00:00:03] [%clk 00:15:20]} e6 {[%emt 00:00:03] [%clk 00:15:30]} 4. g3
{[%emt 00:00:02] [%clk 00:15:27]} Bb4+ {[%emt 00:00:09] [%clk 00:15:31]} 5. Bd2
{[%emt 00:00:02] [%clk 00:15:35]} Be7 {[%emt 00:00:03] [%clk 00:15:38]} 6. Bg2
{[%emt 00:00:08]} O-O {[%emt 00:00:01] [%clk 00:15:44]} 7. O-O {[%emt 00:00:06]
[%clk 00:15:44]} c6 {[%emt 00:00:04] [%clk 00:15:50]} 8. Qc2 {[%emt 00:00:08]
[%clk 00:15:46]} Nbd7 {[%emt 00:00:07] [%clk 00:15:53]} 9. Rd1 {[%emt 00:00:28]
[%clk 00:15:29]} a5 {[%emt 00:00:11] [%clk 00:15:52]} 10. Bg5 {[%emt 00:00:19]
[%clk 00:15:19]} h6 {[%emt 00:03:31] [%clk 00:12:31]} 11. Bxf6 {[%emt 00:00:02]
[%clk 00:15:27]} Nxf6 {[%emt 00:00:06]} 12. Nbd2 {[%emt 00:00:01] [%clk
00:15:32]} b6 {[%emt 00:01:14] [%clk 00:11:35]} 13. e4 {[%emt 00:00:30] [%clk
00:15:11]} Bb7 {[%emt 00:00:28] [%clk 00:11:18]} 14. e5 {[%emt 00:00:03] [%clk
00:15:16]} Nd7 {[%emt 00:00:03] [%clk 00:11:27]} 15. cxd5 {[%emt 00:00:08] [%clk
00:15:17]} cxd5 {[%emt 00:00:02] [%clk 00:11:35]} 16. Rac1 {[%emt 00:01:28]
[%clk 00:13:59]} Rc8 {[%emt 00:05:33] [%clk 00:06:13]} 17. Qa4 {[%emt 00:00:04]
[%clk 00:14:05]} Nb8 {[%emt 00:00:15] [%clk 00:06:07]} 18. Bf1 {[%emt 00:00:17]
[%clk 00:13:58]} Nc6 {[%emt 00:00:28] [%clk 00:05:50]} 19. a3 {[%emt 00:00:17]
[%clk 00:13:51]} Na7 {[%emt 00:00:04] [%clk 00:05:57]} 20. Qb3 {[%emt 00:00:47]
[%clk 00:13:12]} Bc6 {[%emt 00:00:31] [%clk 00:05:36]} 21. Ba6 {[%emt 00:00:20]
[%clk 00:13:02]} Rb8 {[%emt 00:00:28] [%clk 00:05:19]} 22. Bd3 {[%emt 00:00:32]
[%clk 00:12:39]} Qd7 {[%emt 00:00:40] [%clk 00:04:50]} 23. Bb1 {[%emt 00:00:08]
[%clk 00:12:40]} Bb5 {[%emt 00:00:43] [%clk 00:04:18]} 24. Qc2 {[%emt 00:00:54]
[%clk 00:11:55]} g6 {[%emt 00:00:02] [%clk 00:04:26]} 25. Qc3 {[%emt 00:00:01]
[%clk 00:12:04]} Rfc8 {[%emt 00:00:13] [%clk 00:04:23]} 26. Qe3 {[%emt 00:00:04]
[%clk 00:12:10]} Kg7 {[%emt 00:00:24] [%clk 00:04:10]} 27. h4 {[%emt 00:00:05]
[%clk 00:12:14]} Rxc1 {[%emt 00:00:18] [%clk 00:04:02]} 28. Rxc1 {[%emt
00:00:02] [%clk 00:12:22]} Rc8 {[%emt 00:00:02] [%clk 00:04:11]} 29. Re1 {[%emt
00:02:04] [%clk 00:10:27]} Ba6 {[%emt 00:00:35] [%clk 00:03:46]} 30. Nh2 {[%emt
00:01:42] [%clk 00:08:55]} h5 {[%emt 00:00:25] [%clk 00:03:32]} 31. Ndf3 {[%emt
00:00:22] [%clk 00:08:43]} Qb5 {[%emt 00:00:20] [%clk 00:03:22]} 32. Qd2 {[%emt
00:00:05] [%clk 00:08:47]} Qc4 {[%emt 00:02:12]} 33. Ng5 {[%clk 00:08:16]} Bxg5
{[%emt 00:01:14] [%clk 00:00:57]} 34. Qxg5 {[%emt 00:00:31] [%clk 00:07:55]}
Qxd4 {[%emt 00:00:17] [%clk 00:00:50]} 35. Qf6+ {[%emt 00:00:02] [%clk
00:08:01]} Kg8 {[%emt 00:00:04] [%clk 00:00:57]} 36. Nf3 {[%emt 00:01:17] [%clk
00:06:53]} Qxb2 {[%emt 00:00:38] [%clk 00:00:30]} 37. Ng5 {[%emt 00:01:08] [%clk
00:05:55]} 1-0

[Site "Europe Echecs"]

[Event "Championnat d'Europe Rapide"]
[Date "2024.12.08"]
[White "Gaponenko, Inna"]
[Black "Kadric, Denis"]
[WhiteElo "2343"]
[BlackElo "2544"]
[Round "7.25"]
[Result "0-1"]
[TimeControl "900+10"]

1. e4 {[%emt 00:00:03] [%clk 00:15:18]} d6 {[%clk 00:15:20]} 2. d4 {[%clk
00:15:27]} Nf6 {[%clk 00:15:29]} 3. Nc3 {[%emt 00:00:01] [%clk 00:15:36]} e5
{[%clk 00:15:38]} 4. Nf3 {[%emt 00:00:06] [%clk 00:15:40]} Nbd7 {[%emt 00:00:02]
[%clk 00:15:47]} 5. Bc4 {[%emt 00:00:01] [%clk 00:15:49]} Be7 {[%emt 00:00:01]
[%clk 00:15:56]} 6. a4 {[%clk 00:15:58]} O-O {[%emt 00:00:01] [%clk 00:16:04]}
7. O-O {[%emt 00:00:02] [%clk 00:16:07]} c6 {[%emt 00:00:01] [%clk 00:16:13]} 8.
Ba2 {[%emt 00:00:19]} a5 {[%clk 00:16:05]} 9. Re1 {[%emt 00:00:04] [%clk
00:16:22]} h6 {[%emt 00:00:03] [%clk 00:16:12]} 10. h3 {[%emt 00:00:01] [%clk
00:16:30]} Re8 {[%emt 00:00:03] [%clk 00:16:20]} 11. Be3 {[%emt 00:00:23] [%clk
00:16:16]} exd4 {[%emt 00:00:01] [%clk 00:16:29]} 12. Bxd4 {[%emt 00:03:44]
[%clk 00:12:42]} Nf8 {[%emt 00:00:02] [%clk 00:16:38]} 13. e5 {[%emt 00:00:03]
[%clk 00:12:48]} dxe5 {[%emt 00:00:03] [%clk 00:16:46]} 14. Bxe5 {[%emt
00:02:58] [%clk 00:10:00]} Be6 {[%emt 00:00:12] [%clk 00:16:44]} 15. Qxd8 {[%emt
00:01:04] [%clk 00:09:05]} Rexd8 {[%emt 00:00:01] [%clk 00:16:53]} 16. Rad1
{[%emt 00:00:51] [%clk 00:08:24]} Bb4 {[%emt 00:04:16] [%clk 00:12:47]} 17. Rxd8
{[%emt 00:02:04] [%clk 00:06:31]} Rxd8 {[%emt 00:00:01] [%clk 00:12:56]} 18.
Bxe6 {[%emt 00:00:02] [%clk 00:06:39]} Nxe6 {[%emt 00:00:01] [%clk 00:13:05]}
19. Rd1 {[%clk 00:06:48]} Rxd1+ {[%emt 00:03:30] [%clk 00:09:45]} 20. Nxd1
{[%emt 00:00:01] [%clk 00:06:57]} Nd5 {[%clk 00:09:54]} 21. b3 {[%emt 00:03:56]
[%clk 00:03:11]} b5 {[%emt 00:00:21] [%clk 00:09:42]} 22. Nb2 {[%emt 00:00:19]
[%clk 00:03:03]} f6 {[%emt 00:00:48] [%clk 00:09:05]} 23. Bb8 {[%emt 00:00:01]
[%clk 00:03:11]} Ba3 {[%emt 00:00:51] [%clk 00:08:24]} 24. Nd3 {[%emt 00:00:13]
[%clk 00:03:08]} bxa4 {[%emt 00:01:39] [%clk 00:06:55]} 25. bxa4 {[%clk
00:03:17]} Nb6 {[%clk 00:07:05]} 26. Nd2 {[%emt 00:00:13] [%clk 00:03:14]} Nxa4
{[%emt 00:00:07] [%clk 00:07:07]} 27. Nb3 {[%emt 00:03:09] [%clk 00:00:16]} Bb4
{[%emt 00:00:02] [%clk 00:07:16]} 28. f4 {[%clk 00:00:25]} Bc3 {[%emt 00:03:28]
[%clk 00:03:59]} 29. Ba7 {[%clk 00:00:33]} f5 {[%emt 00:00:18] [%clk 00:03:51]}
30. g4 {[%emt 00:00:01] [%clk 00:00:42]} g6 {[%clk 00:04:00]} 31. gxf5 {[%emt
00:00:02] [%clk 00:00:51]} gxf5 {[%clk 00:04:10]} 32. Kf1 {[%emt 00:00:02] [%clk
00:00:59]} Bb4 {[%emt 00:02:08] [%clk 00:02:13]} 33. Bb8 {[%emt 00:00:01] [%clk
00:01:07]} Nc3 {[%emt 00:00:29] [%clk 00:01:54]} 34. Nxb4 {[%emt 00:00:55] [%clk
00:00:22]} axb4 {[%emt 00:00:01] [%clk 00:02:03]} 35. Kf2 {[%emt 00:00:03] [%clk
00:00:29]} Nd5 {[%emt 00:00:06] [%clk 00:02:06]} 36. Kf3 {[%emt 00:00:02] [%clk
00:00:37]} c5 {[%emt 00:00:07] [%clk 00:02:10]} 37. Bd6 {[%emt 00:00:17] [%clk
00:00:29]} c4 {[%emt 00:00:02] [%clk 00:02:19]} 38. Nd2 {[%clk 00:00:38]} Nd4+
{[%emt 00:00:05] [%clk 00:02:23]} 39. Kf2 {[%emt 00:00:06] [%clk 00:00:42]} c3
{[%emt 00:00:01] [%clk 00:02:32]} 40. Nb1 {[%emt 00:00:36] [%clk 00:00:16]} Nxc2
{[%emt 00:00:06] [%clk 00:02:37]} 41. Ke2 {[%emt 00:00:12] [%clk 00:00:14]} Nd4+
{[%emt 00:00:07] [%clk 00:02:40]} 42. Kd3 {[%emt 00:00:02] [%clk 00:00:22]} c2
{[%emt 00:00:05] [%clk 00:02:45]} 0-1

[Site "Europe Echecs"]